Cogmind - Beta 13 *** ADVENTURER MODE // 2024.04.07 @ 20:58:43 Player: Vetulus Result: Self-destructed Performance ------------- Evolutions (2) 1000 Regions Visited (6) 1200 Robots Destroyed (15) 75 Value Destroyed (496) 496 Prototype IDs (34) 680 Alien Tech Used (0) 0 Bonus (865) 865 TOTAL SCORE: 4316 Bonus ------- High Alert Combat Kills 24 Follower Combat Kills 586 Aligned with FarCom 300 Friendly Fire -45 Cogmind --------- Core Integrity 442/550 Matter 300/300 Energy 150/150 System Corruption 5% Temperature Cool (0) Movement Hovering (46) Location -8/Storage Parts ------- > --- POWER (2) -------- Light Ion Engine Light Ion Engine > --- PROPULSION (3) --- Aerolev Unit Aerolev Unit > --- UTILITY (4) ------ Small Storage Unit Weight Redist. System Improved Terrain Scanner Hacking Suite > --- WEAPON (2) ------- Latent Energy Streamer > --- INVENTORY (8) ---- Weight Redist. System Terrain Scan Processor Enhanced Autogun Enhanced Autogun Enhanced Autogun Enhanced Autogun Peak State ------------ > --- POWER ------------ Light Ion Engine Light Nuclear Core > --- PROPULSION ------- Aerolev Unit Aerolev Unit Aerolev Unit > --- UTILITY ---------- Small Storage Unit Weight Redist. System Improved Terrain Scanner Hacking Suite > --- WEAPON ----------- Latent Energy Streamer Enhanced Autogun > --- INVENTORY -------- Light Ion Engine Weight Redist. System Terrain Scan Processor Enhanced Autogun Enhanced Autogun Enhanced Autogun Mining Laser [Rating: 40] Favorites ----------- Power Light Ion Engine Engine Light Ion Engine Power Core Light Nuclear Core Propulsion VTOL Module Treads Light Treads Hover Unit Aerolev Unit Flight Unit VTOL Module Utility Small Storage Unit Device Weight Redist. System Storage Small Storage Unit Processor Improved Terrain Scan Processor Hackware Hacking Suite Weapon Enhanced Autogun Energy Gun Medium Laser Energy Cannon Latent Energy Streamer Ballistic Gun Enhanced Autogun Special Weapon Mining Laser Build | -11 -10 -10 -10 -9 -8 -8 ------- Run | Yrd Mat Min Exi Min Mat Sto Slots Evolved 4 | . . . . . 4 . Power 1 | . . . . . 1 . Propulsion 1 | . . . . . 1 . Utility 2 | . . . . . 2 . Weapon . | . . . . . . . Parts Attached 46 | 6 7 1 2 2 7 21 Power 5 | 1 . . . . 1 3 Engine 4 | 1 . . . . 1 2 Core 1 | . . . . . . 1 Reactor . | . . . . . . . Propulsion 10 | 2 3 . . . 1 4 Treads 2 | 2 . . . . . . Leg . | . . . . . . . Wheel . | . . . . . . . Hover 3 | . . . . . . 3 Flight 5 | . 3 . . . 1 1 Utility 11 | 1 2 . . 2 3 3 Device 7 | . 1 . . 2 2 2 Storage 2 | 1 1 . . . . . Processor 1 | . . . . . 1 . Hackware 1 | . . . . . . 1 Protection . | . . . . . . . Artifact . | . . . . . . . Weapon 20 | 2 2 1 2 . 2 11 Energy Gun 2 | 1 . . . . 1 . Energy Cannon 2 | . . . 1 . . 1 Ballistic Gun 13 | 1 2 . 1 . 1 8 Ballistic Cannon . | . . . . . . . Launcher . | . . . . . . . Special Weapon 3 | . . 1 . . . 2 Impact Weapon . | . . . . . . . Slashing Weapon . | . . . . . . . Piercing Weapon . | . . . . . . . Special Melee Weapon . | . . . . . . . Unidentified Prototypes 4 | . . . . 1 1 2 Parts Lost 3 | . . . . . . 3 Power 1 | . . . . . . 1 Propulsion 1 | . . . . . . 1 Utility . | . . . . . . . Weapon 1 | . . . . . . 1 Highest Loss Streak 3 | . . . . . . 3 To Critical Strikes . | . . . . . . . Average Slot Usage (%) 97 | . 92 100 100 100 97 97 Engine 15 | . 14 14 14 14 18 16 Treads 1 | . 11 . . . . . Hover 1 | . . . . . . 3 Flight 23 | . 15 28 28 28 26 22 Device 15 | . 7 14 14 14 18 17 Storage 10 | . 14 14 14 14 9 9 Processor 3 | . . . . . 6 4 Hackware 2 | . . . . . . 4 Energy Cannon 1 | . . . 6 . . 1 Ballistic Gun 12 | . 20 14 7 14 9 12 Special Weapon 5 | . . 14 14 14 9 3 Naked Turns . | . . . . . . . Heaviest Build 27 | 12 14 14 19 12 16 27 Greatest Support 40 | 40 40 14 14 14 18 30 Greatest Overweight (x) 2 | 2 . . 1 . . 1 Average Overweight (x) . | . . . . . . . Largest Inventory Capacity 8 | 8 8 8 8 8 8 8 Average Capacity 7 | 7 7 8 8 8 8 8 Most Carried 8 | 4 8 8 8 8 6 8 Average Carried 6 | 2 5 7 7 6 4 7 Final Capacity 8 | 8 8 8 8 8 8 8 Final Carried 8 | 2 8 8 7 6 5 6 Class Distribution -------------------- 32% | Scout 21% | Sprinter 18% | Hacker-Scout 15% | Mutant 8% | Commander-Scout 3% | Hacker-Mutant Dominant Class ---------------- Sprinter | -10/Materials Sprinter | -10/Mines Mutant | -10/Exiles Sprinter | -9/Mines Scout | -8/Materials Scout | -8/Storage Resources | -11 -10 -10 -10 -9 -8 -8 ----------- Run | Yrd Mat Min Exi Min Mat Sto Matter Collected 980 | 186 184 . . 50 30 530 Remotely . | . . . . . . . Salvage Created 423 | . 44 . . . . 379 Parts 29 | . 7 . . . . 22 Haulers Intercepted . | . . . . . . . Recyclers Shooed . | . . . . . . . Parts Field Recycled . | . . . . . . . Retrieved Matter . | . . . . . . . Parts Self-Destructed . | . . . . . . . Prevented . | . . . . . . . Kills | -11 -10 -10 -10 -9 -8 -8 ------- Run | Yrd Mat Min Exi Min Mat Sto Combat Hostiles Destroyed 12 | . 3 . . . . 9 Guns 11 | . 3 . . . . 8 Classes Destroyed 5 | . 1 . . . . 4 Operator 1 | . . . . . . 1 Watcher 2 | . . . . . . 2 Swarmer 8 | . 3 . . . . 5 Grunt 1 | . . . . . . 1 Sentry 3 | . . . . . . 3 Best Kill Streak 6 | . 3 . . . . 6 Combat Bots Only 5 | . 3 . . . . 5 Max Kills in Single Turn 1 | . 1 . . . . 1 Gunslinging . | . . . . . . . Exploded . | . . . . . . . Melee . | . . . . . . . Uniques/NPCs Destroyed . | . . . . . . . Combat | -11 -10 -10 -10 -9 -8 -8 -------- Run | Yrd Mat Min Exi Min Mat Sto Hostile Shots Fired 45 | . 13 . . 1 . 31 Missed 28 | . 7 . . 1 . 20 Damage Taken 724 | . 40 . . . . 684 Core 116 | . 8 . . . . 108 Absorbed by Shields . | . . . . . . . Ignored by Resistances 46 | . 12 . . . . 34 Regen/Repaired (Parts) 78 | . . . . . . 78 Core Remaining (%) 98 | 100 . . . 96 . . Volleys Fired 53 | . 5 . . . 7 41 Largest 2 | . 2 . . . 1 2 Hottest 100 | . 46 . . . 100 100 Shots Fired 91 | . 10 . . . 7 74 Gun 78 | . 10 . . . . 68 Cannon 1 | . . . . . . 1 Launcher . | . . . . . . . Special 12 | . . . . . 7 5 Kinetic 78 | . 10 . . . . 68 Thermal 12 | . . . . . 7 5 Explosive . | . . . . . . . Electromagnetic 1 | . . . . . . 1 Robot Hit Streak 11 | . 3 . . . . 11 Robot Miss Streak 4 | . 4 . . . . 3 Penetration Max . | . . . . . . . Secondary Targets 1 | . 1 . . . . . Max Gunslinging Chain 1 | . 1 . . . . . Shots Hit Robots 52 | . 7 . . . . 45 Core Hits 22 | . 3 . . . . 19 Critical Kills 1 | . . . . . . 1 Critical Parts Destroyed . | . . . . . . . Critical Strikes 1 | . . . . . . 1 Destroy 1 | . . . . . . 1 Melee Attacks . | . . . . . . . Impact . | . . . . . . . Slashing . | . . . . . . . Piercing . | . . . . . . . Sneak Attacks . | . . . . . . . Combat Hostiles . | . . . . . . . Follow-up Attacks . | . . . . . . . Damage Inflicted 989 | . 93 . . . . 896 Guns 881 | . 93 . . . . 788 Cannons 4 | . . . . . . 4 Explosions 104 | . . . . . . 104 Melee . | . . . . . . . Ramming . | . . . . . . . Kinetic 881 | . 93 . . . . 788 Thermal . | . . . . . . . Explosive . | . . . . . . . Electromagnetic 108 | . . . . . . 108 Impact . | . . . . . . . Slashing . | . . . . . . . Piercing . | . . . . . . . Highest Corruption 5 | . . . . . . 5 Average Corruption 4 | . . . . . . 4 Corruption Purged . | . . . . . . . Corruption Blocked . | . . . . . . . Effects 1 | . . . . . . 1 Matter Fused 1 | . . . . . . 1 Overload Shots . | . . . . . . . Overflow Damage . | . . . . . . . Projectiles . | . . . . . . . Explosions . | . . . . . . . Melee . | . . . . . . . Knockbacks . | . . . . . . . Impact . | . . . . . . . Kinetic . | . . . . . . . Secondary . | . . . . . . . Self-Inflicted Damage . | . . . . . . . Shots . | . . . . . . . Rammed . | . . . . . . . Targets Rammed . | . . . . . . . Kicked . | . . . . . . . Crushed . | . . . . . . . Highest Temperature 303 | . . . . 303 56 108 Average Temperature 44 | . . . . 162 19 34 Received Heat Transfer 27 | . . . . . . 27 Siege Activations . | . . . . . . . Robots Corrupted 1 | . . . . . . 1 Combat Hostiles 1 | . . . . . . 1 Parts Fried 3 | . . . . . . 3 Impact Corruptions . | . . . . . . . Robots Melted . | . . . . . . . Combat Hostiles . | . . . . . . . Parts Melted . | . . . . . . . Heat Transferred . | . . . . . . . Parts Sabotaged . | . . . . . . . Parts Stolen . | . . . . . . . Parts Stripped . | . . . . . . . Power Chain Reactions . | . . . . . . . Latent Energy Used 200 | . . . . . . 200 LE Corruption 3 | . . . . . . 3 Alert | -11 -10 -10 -10 -9 -8 -8 ------- Run | Yrd Mat Min Exi Min Mat Sto Peak Influence 805 | . 132 43 . 30 86 805 Initial 43 | . . 43 . . 9 30 Average 132 | . 38 43 . 9 54 205 Maximum Alert Level 3 | . . . . . . 3 Low Security (%) 76 | 100 100 100 . 100 100 58 Level 1 14 | . . . . . . 24 Level 2 8 | . . . . . . 14 Level 3 1 | . . . . . . 1 Level 4 . | . . . . . . . Level 5 . | . . . . . . . High Security . | . . . . . . . Max Security . | . . . . . . . Squads Dispatched 3 | . . . . . . 3 Investigation . | . . . . . . . Extermination . | . . . . . . . Reinforcement 1 | . . . . . . 1 Assault 1 | . . . . . . 1 Garrison 1 | . . . . . . 1 Intercept . | . . . . . . . Searches Triggered . | . . . . . . . Construction Impeded . | . . . . . . . Haulers Reinforced . | . . . . . . . Active Scanning Responses . | . . . . . . . Cargo Convoy Interrupts . | . . . . . . . Stealth | -11 -10 -10 -10 -9 -8 -8 --------- Run | Yrd Mat Min Exi Min Mat Sto Distress Signals 1 | . . . . . . 1 Communications Jammed . | . . . . . . . Distress Signals . | . . . . . . . Times Spotted 39 | . 5 . . 2 2 30 Peak Tracking Total 5 | . 3 . . 2 1 5 Tactical Retreats 4 | . 1 . . 1 . 2 Traps | -11 -10 -10 -10 -9 -8 -8 ------- Run | Yrd Mat Min Exi Min Mat Sto Traps Triggered . | . . . . . . . Indirectly . | . . . . . . . Trap Hack Attempts . | . . . . . . . Triggered . | . . . . . . . Disarmed . | . . . . . . . Reprogrammed . | . . . . . . . Reused . | . . . . . . . Traps Extracted . | . . . . . . . Installed . | . . . . . . . Triggered . | . . . . . . . Machines | -11 -10 -10 -10 -9 -8 -8 ---------- Run | Yrd Mat Min Exi Min Mat Sto Machines Disabled 7 | . . . . . . 7 Max in Single Turn 2 | . . . . . . 2 Garrison Access 1 | . . . . . . 1 Machines Repaired . | . . . . . . . Machines Dismantled . | . . . . . . . Machines Sabotaged . | . . . . . . . Overloaded Fab Kills . | . . . . . . . Hacking | -11 -10 -10 -10 -9 -8 -8 --------- Run | Yrd Mat Min Exi Min Mat Sto Machines Accessed 21 | . 3 . 1 . 5 12 Terminals 18 | . 3 . . . 4 11 Fabricators . | . . . . . . . Repair Stations 1 | . . . . . . 1 Recycling Units 1 | . . . . . 1 . Scanalyzers . | . . . . . . . Garrison Access . | . . . . . . . Total Hacks 53 | . 7 . 1 . 15 30 Successful 34 | . 4 . 1 . 8 21 Failed 19 | . 3 . . . 7 9 Catastrophic 2 | . . . . . 2 . Database Lockouts . | . . . . . . . Manual 17 | . 3 . 1 . 11 2 Terminals 45 | . 7 . . . 14 24 Fabricators . | . . . . . . . Repair Stations 6 | . . . . . . 6 Recycling Units 1 | . . . . . 1 . Scanalyzers . | . . . . . . . Garrison Access . | . . . . . . . Terminal Hacks 27 | . 4 . 1 . 7 15 Record 1 | . . . . . 1 . Part Schematic 2 | . . . . . . 2 Prototype ID Bank 4 | . 1 . . . 1 2 Open Door 4 | . . . . . . 4 Level Access Points 1 | . . . . . 1 . Branch Access Points 3 | . 1 . . . 1 1 Terminal Index 3 | . 1 . . . 1 1 Recycling Unit Index 1 | . 1 . . . . . Alert Level 4 | . . . . . 1 3 Unreport Threat 2 | . . . . . . 2 Zone Layout 1 | . . . . . 1 . Derelict Proto ID Bank 1 | . . . 1 . . . Fabricator Hacks . | . . . . . . . Repair Station Hacks 6 | . . . . . . 6 Scan Component 3 | . . . . . . 3 Repair 3 | . . . . . . 3 Recycling Unit Hacks 1 | . . . . . 1 . Report Inventory 1 | . . . . . 1 . Scanalyzer . | . . . . . . . Garrison Access Hacks . | . . . . . . . Unauthorized Hacks . | . . . . . . . Terminals . | . . . . . . . Fabricators . | . . . . . . . Repair Stations . | . . . . . . . Recycling Units . | . . . . . . . Scanalyzers . | . . . . . . . Garrison Access . | . . . . . . . Data Cores Recovered . | . . . . . . . Used . | . . . . . . . Hacking Detections 15 | . 3 . . . 4 8 Full Trace Events . | . . . . . . . Feedback Events . | . . . . . . . Feedback Blocked . | . . . . . . . Robot Schematics Acquired . | . . . . . . . Robots Built . | . . . . . . . Authchips . | . . . . . . . Time . | . . . . . . . Total Robot Build Rating . | . . . . . . . Part Schematics Acquired 2 | . . . . . . 2 Parts Built . | . . . . . . . Authchips . | . . . . . . . Time . | . . . . . . . Total Part Build Rating . | . . . . . . . Parts Repaired 3 | . . . . . . 3 Time 118 | . . . . . . 118 Parts Recycled . | . . . . . . . Recycled Matter . | . . . . . . . Retrieved Matter . | . . . . . . . Retrieved Components . | . . . . . . . Parts Scanalyzed . | . . . . . . . Part Schematics Acquired . | . . . . . . . Parts Damaged . | . . . . . . . Bothacking | -11 -10 -10 -10 -9 -8 -8 ------------ Run | Yrd Mat Min Exi Min Mat Sto Used RIF Installer . | . . . . . . . Robots Hacked . | . . . . . . . Non-combat . | . . . . . . . Combat . | . . . . . . . Robot Hacks Applied . | . . . . . . . Relay Couplers Released . | . . . . . . . Fabnet Peak Effective % . | . . . . . . . Robots Rewired . | . . . . . . . Allies Hacked . | . . . . . . . Hacks Repelled . | . . . . . . . Allies | -11 -10 -10 -10 -9 -8 -8 -------- Run | Yrd Mat Min Exi Min Mat Sto Total Allies 12 | . . 1 . . . 11 Largest Group 11 | . . 1 . . . 11 Highest-Rated Group 273 | . . 31 . . . 273 Highest-Rated Ally 100 | . . 31 . . . 100 Total Orders . | . . . . . . . Ally Attacks 71 | . . . . . . 71 Total Damage 1859 | . . . . . . 1859 Kills 18 | . . . . . . 18 Allies Corrupted . | . . . . . . . Allies Melted . | . . . . . . . Intel | -11 -10 -10 -10 -9 -8 -8 ------- Run | Yrd Mat Min Exi Min Mat Sto Robot Analysis Total . | . . . . . . . Derelict Logs Recovered 1 | . . . . 1 . . Drone Launches . | . . . . . . . Drone Recoveries . | . . . . . . . Exploration | -11 -10 -10 -10 -9 -8 -8 ------------- Run | Yrd Mat Min Exi Min Mat Sto Turns Passed 1666 | 81 201 64 178 94 191 857 Spaces Moved 1952 | 46 230 133 364 248 236 695 Core 16 | 15 . . . . . 1 Treads 82 | 31 51 . . . . . Legs . | . . . . . . . Wheels . | . . . . . . . Hover 141 | . . . . . . 141 Flight 1713 | . 179 133 364 248 236 553 Fastest Speed 29 | 50 32 32 32 32 29 29 Average Speed 40 | 148 60 32 47 32 29 32 Slowest Speed 160 | 160 160 32 112 32 29 110 Overloaded Moves . | . . . . . . . Propulsion Burnouts . | . . . . . . . Robots Hopped 21 | . 4 . . 2 1 14 Cave-ins Triggered 2 | . . . . . . 2 Exploration Rate (%) 47 | 4 39 24 89 60 25 90 Regions Visited 6 Branch Regions 4 Pre-discovered Areas 1 | . . . . 1 . . Known Exits Taken 2 | . 1 . . . 1 . Unknown Exits Taken 4 | 1 . 1 1 1 . . Scrap Searched 2 | . . . . 2 . . Spaces Dug 10 | . . . . . 7 3 Terrain Destroyed 64 | . . . . . 7 57 Melee . | . . . . . . . Projectile 10 | . . . . . 7 3 AOE 54 | . . . . . . 54 Terrain Rammed . | . . . . . . . Walls Destroyed . | . . . . . . . Machines Disabled . | . . . . . . . Actions | -11 -10 -10 -10 -9 -8 -8 --------- Run | Yrd Mat Min Exi Min Mat Sto Total 2714 | 59 278 153 369 260 335 1260 Wait 614 | . 25 18 . 8 82 481 Move 1907 | 45 221 132 363 243 233 670 Hop 18 | . 4 . . 2 1 11 Pick Up 48 | 8 11 1 1 2 4 21 Fast Attach . | . . . . . . . Attach 26 | 6 4 . 1 1 5 9 Detach 2 | . 1 . 1 . . . Swap 20 | . 3 1 1 1 2 12 Drop 26 | . 4 1 2 3 1 15 Fire 53 | . 5 . . . 7 41 Melee . | . . . . . . . Ram . | . . . . . . . Kick . | . . . . . . . Crush . | . . . . . . . Escape Stasis . | . . . . . . . Rewire . | . . . . . . . Trap . | . . . . . . . Miscellaneous . | . . . . . . . Route ------- -11/Scrapyard -10/Materials (discovered 2 exits: *Min x2) -10/Mines -10/Exiles -9/Mines -8/Materials (discovered 5 exits: Fac x3 / *Sto x2) -8/Storage (discovered 2 exits: *Fac / Rec) History --------- Turn | Location | Event 23 | -11/Scrapyard | Discovered new exit (range 15) 82 | -11/Scrapyard | Entered Materials 241 | -10/Materials | Discovered new exit (range 13) 242 | -10/Materials | Identified exit to Mines 283 | -10/Materials | Entered Mines 286 | -10/Mines | Received a Mining Laser from a helpful Derelict 287 | -10/Mines | Met a Derelict bent on vengeance 309 | -10/Mines | Assembled infested the area 320 | -10/Mines | Deemed a non-threat by the Exiles lab entrance 320 | -10/Mines | Discovered new exit (range 5) 347 | -10/Mines | Entered Exiles 355 | -10/Exiles | Met 8R-AWN 361 | -10/Exiles | Met EX-HEX 369 | -10/Exiles | Met EX-BIN 373 | -10/Exiles | Aligned with FarCom system 373 | -10/Exiles | Given EX-Vault access code 381 | -10/Exiles | Opened EX-Vault 384 | -10/Exiles | Found Latent Energy Streamer 409 | -10/Exiles | Warned to stay clear of 0b10 Research branches 469 | -10/Exiles | Met EX-DEC 475 | -10/Exiles | Visited The Gauntlet 522 | -10/Exiles | Discovered new exit (range 11) 525 | -10/Exiles | Left Exiles lab with Latent Energy Streamer 525 | -10/Exiles | Entered Mines 539 | -9/Mines | Learned Materials terminal intel 569 | -9/Mines | Found a damaged Exp. Sensor Array with a note attached 570 | -9/Mines | Found Prototype Device 571 | -9/Mines | Identified Exp. Sensor Array 614 | -9/Mines | Discovered new exit (range 11) 616 | -9/Mines | Learned location of Storage (-8) 619 | -9/Mines | Entered Materials 619 | -8/Materials | Evolved 4 slots: Power x1, Propulsion x1, Utility x2 620 | -8/Materials | Loaded intel: 12 terminal locations 652 | -8/Materials | Discovered new exit (range 6) 676 | -8/Materials | Identified exit to Storage 676 | -8/Materials | Identified exit to Factory 810 | -8/Materials | Entered Storage 933 | -8/Storage | Build established: Scout 1160 | -8/Storage | Met 01-MTF 1225 | -8/Storage | Repaired VTOL Module 1253 | -8/Storage | Repaired Lgt. Ion Engine 1315 | -8/Storage | Repaired Enh. Autogun 1376 | -8/Storage | Identified exit to Recycling 1380 | -8/Storage | Discovered exit to Factory (range 8) 1518 | -8/Storage | Build established: Hacker-Scout 1536 | -8/Storage | Assisted by bots powering up and referring to "LRC-V3" 1589 | -8/Storage | Garrison activated, responded to threat 1627 | -8/Storage | Crushed by falling debris 1628 | -8/Storage | Crushed by falling debris 1659 | -8/Storage | Lost 3 parts (1p1n1w) 1667 | -8/Storage | Self-destructed Last Messages --------------- >>Alert(Check) Current Alert Level: 3-H 01611_ U-05 Engineer lays Concrete. 01612_ Acquired 10 matter. 01612_ U-05 Engineer lays Concrete. 01613_ U-05 Engineer builds a Wall. 01627_ The unstable cave ceiling collapses. 01627_ Crushed by falling debris. [Achievement: Unlikely Earthworm] 01627_ Lgt. Nuclear Core destroyed. 01627_ System corrupted by crushing effect (+1). 01628_ The unstable cave ceiling collapses. 01628_ Crushed by falling debris. 01628_ Aerolev Unit destroyed. 01628_ System corrupted by crushing effect (+1). 01628_ Mining Laser destroyed. 01629_ U-05 Engineer lays Concrete. 01638_ System corrupted: Matter fused (-8). 01663_ Acquired 18 matter. 01667_ Trooper 3d destroyed. Map ----- +----------------------------------------------------+ | #????# =#?###########= #???????????? | | #????# ### ######/##???????????? | | #????# #????????????? | | #???## #????????????? | | ########+## ##### #?????????"??? | | ## #######???# #?"??????T???? | | ## !! ########### #?? ?????????? | | ## ! + #????????????? | | ## ###### # ???"???????? | | ## #????# ### +????????#???? | | = ## ! #????# #?# #????????#???? | | %!!## ###### #?# #????#Y??????? | | / ] # #?# T#???????????# | | ## + ### ##??????????#? | | ####+#####+##### #? """??#???#????#? | | #+##### # # #?????#??###??????? | | # # + #???>??### ####???? | | """"" # # # #?#????# #???? | | "]**" # # # #?#?#### """" ##??? | | """" + # "" # #???# ## """" T#??? | | ""?" # # """ #???#### """ ##??? | | !*]" # # """ " #####"##!"""" ##??? | | """" + # ##" # "*%[ #?##? | | ?? # #####+### #=## g" "!#/####???# | | ####+## ##### ####[##lgg###;p #?????? | | + % =m lggl%@g #???#?? | | #########################; #?????? | | #???#??????????????# "####?????? | | ####???????????#??????#### #????????? | | ?????????#???????????????#####????????? | | | | | | | | | | | | | | | | | | | | | | | | | | | | | | | | | | | | | | | | | +----------------------------------------------------+ Best States ------------- Heat Dissipation 31 Energy Generation 19 Energy Capacity 185 Matter Stores 300 Matter Capacity 300 Sight Range 16 Terrain Scan Range 16 Terrain Scan Density 110 Additional Mass Support 6 Resistance: KI 20 Resistance: TH 20 Resistance: EX 20 Resistance: EM 20 Resistance: I 20 Resistance: S 20 Resistance: P 20 Evasion (%) 64 Recoil Reduction 2 Offensive Hacking 20 Item Schematics ----------------- Adv. Weight Redist. System | -8/Storage | Hacked Insulated Plating | -8/Storage | Hacked Robot Schematics ------------------ None Fabricated ------------ Nothing Alien Tech Used ----------------- None Achievements -------------- Omniscient Cartographer Unlikely Earthworm Challenges ------------ None Game ------ Seed CargoFlyingMachine Manual? 0 Play Time 00:36:26 Cumulative 29.7 hours Start 2024.04.07 @ 20:26:02 End 2024.04.07 @ 20:58:43 Sessions 1 Manual Loads 0 Difficulty Adventurer Special Mode None Game No. 57 Rogue 23 Adventurer 34 Explorer 0 Win Type - Total 0 Types 0/0/0/0/0/0/0/0/0 Lore% 34 Gallery% 32 Achievement% 38 Wizard Run 0 Options --------- Layout 0 ASCII 0 Keyboard 0 Movement Numpad Keybinds 0 Fullscreen 1 Font 18/SmallcapsGlow Map View 76x50 Zoom Use 0% Tactical HUD 1 Map Filters NONE Filters NONE Steam 1 RUN: 988b988b-eb1a-4def-8ee3-74e11d8eeddf